[Event "FIDE Open Sachove Univerzity QCC"]
[Site "Ceske Budejovice"]
[Date "2020.07.07"]
[Round "7.22"]
[White "Kaucky, Jaroslav"]
[Black "Gorej, Jan"]
[Result "1-0"]
[ECO "A03"]
[WhiteElo "1573"]
[BlackElo "1247"]
[Annotator "NA"]
[PlyCount "75"]
[EventDate "2020.07.01"]
[EventType "swiss"]
[EventCountry "CZE"]
[SourceTitle "playchess.com"]
[Source "ChessBase"]
[SourceQuality "1"]
[TimeControl "40/5400+30:1800+30"]

1. f4 {[%emt 0:00:09]} d5 {[%emt 0:03:15]} 2. d4 {[%emt 0:00:10]} Bf5 {[%emt 0:00:21]} 3. Nf3 {[%emt 0:00:13]} Nc6 {[%emt 0:00:50]} 4. e3 {[%emt 0:00:04]} e6 {[%emt 0:01:31]} 5. Bd3 {[%emt 0:00:05]} Bg4 {[%emt 0:00:52]} 6. c3 {[%emt 0:00:18]} Be7 {[%emt 0:01:52]} 7. Nbd2 {[%emt 0:02:10]} Qd7 {[%emt 0:02:24]} 8. Bb5 {[%emt 0:03:54]} f6 {[%emt 0:03:30]} 9. h3 {[%emt 0:00:18]} Bh5 {[%emt 0:00:22]} 10. O-O {[%emt 0:01:34]} Bd6 {[%emt 0:00:03]} 11. c4 {[%emt 0:04:58]} a6 {[%emt 0:03:28]} 12. Ba4 {[%emt 0:00:29]} Bg6 {[%emt 0:07:01]} 13. Qb3 {[%emt 0:00:58]} Ra7 {[%emt 0:06:06]} 14. cxd5 {[%emt 0:01:27]} exd5 {[%emt 0:02:45]} 15. Qd1 {[%emt 0:05:58]} Nge7 {[%emt 0:01:13]} 16. Nh4 {[%emt 0:00:44]} Bf7 {[%emt 0:01:32]} 17. a3 {[%emt 0:00:59]} O-O {[%emt 0:00:57]} 18. b4 {[%emt 0:00:33]} Be6 {[%emt 0:04:46]} 19. Bb2 {[%emt 0:07:31]} Raa8 {[%emt 0:07:01]} 20. Rc1 {[%emt 0:01:09]} Rae8 {[%emt 0:03:37]} 21. b5 {[%emt 0:06:27]} axb5 {[%emt 0:02:45]} 22. Bxb5 {[%emt 0:00:12]} Ng6 {[%emt 0:00:26]} 23. Nxg6 {[%emt 0:01:07]} hxg6 {[%emt 0:00:10]} 24. Qc2 {[%emt 0:00:33]} Bxh3 {[%emt 0:10:46]} 25. Qxg6 {[%emt 0:07:40]} Bf5 {[%emt 0:05:11]} 26. Qg3 {[%emt 0:01:29]} Kf7 {[%emt 0:02:02]} 27. Rfe1 {[%emt 0:02:05]} g5 {[%emt 0:02:12]} 28. Qf2 {[%emt 0:12:12]} Rh8 {[%emt 0:03:30]} 29. Nb3 {[%emt 0:05:40]} Kg6 {[%emt 0:04:14]} 30. Na5 {[%emt 0:00:15]} Be4 {[%emt 0:17:03]} 31. Nxc6 {[%emt 0:00:35]} Qg4 {[%emt 0:02:27]} 32. Ne5+ {[%emt 0:02:38]} fxe5 {[%emt 0:01:05]} 33. dxe5 {[%emt 0:02:24]} Rh1+ {[%emt 0:00:28]} 34. Kxh1 {[%emt 0:00:29]} Rh8+ {[%emt 0:00:06]} 35. Kg1 {[%emt 0:00:13]} Qh5 {[%emt 0:00:52]} 36. Qg3 {[%emt 0:00:56]} Qh1+ {[%emt 0:00:43]} 37. Kf2 {[%emt 0:00:09]} Qh5 {[%emt 0:00:07]} 38. exd6 {[%emt 0:00:29]} 1-0

[Event "FIDE Open Sachove Univerzity QCC"]
[Site "Ceske Budejovice"]
[Date "2020.07.07"]
[Round "7.23"]
[White "Chmelik, Benedikt"]
[Black "Dobsa, Emma"]
[Result "1-0"]
[ECO "C67"]
[WhiteElo "1571"]
[BlackElo "1345"]
[Annotator "NA"]
[PlyCount "93"]
[EventDate "2020.07.01"]
[EventType "swiss"]
[EventCountry "CZE"]
[SourceTitle "playchess.com"]
[Source "ChessBase"]
[SourceQuality "1"]
[TimeControl "40/5400+30:1800+30"]

1. e4 {[%emt 0:15:03]} e5 {[%emt 0:01:54]} 2. Nf3 {[%emt 0:00:09]} Nc6 {[%emt 0:00:06]} 3. Bb5 {[%emt 0:00:08]} Nf6 {[%emt 0:00:07]} 4. O-O {[%emt 0:00:10]} Nxe4 {[%emt 0:00:04]} 5. Re1 {[%emt 0:00:33]} Nd6 {[%emt 0:00:10]} 6. Nxe5 {[%emt 0:01:07]} Nxe5 {[%emt 0:00:31]} 7. Rxe5+ {[%emt 0:00:05]} Be7 {[%emt 0:00:01]} 8. Ba4 {[%emt 0:00:21]} O-O {[%emt 0:00:18]} 9. d4 {[%emt 0:00:33]} c6 {[%emt 0:00:33]} 10. Nc3 {[%emt 0:00:51]} a5 {[%emt 0:00:42]} 11. a3 {[%emt 0:00:54]} b5 {[%emt 0:03:40]} 12. Bb3 {[%emt 0:00:09]} Nb7 {[%emt 0:03:04]} 13. Qd3 {[%emt 0:03:57]} Bf6 {[%emt 0:05:46]} 14. Re2 {[%emt 0:00:18]} Re8 {[%emt 0:07:05]} 15. Be3 {[%emt 0:00:38]} d5 {[%emt 0:00:52]} 16. Rae1 {[%emt 0:00:58]} Bg4 {[%emt 0:03:16]} 17. f3 {[%emt 0:00:24]} Bh5 {[%emt 0:01:45]} 18. Bf2 {[%emt 0:01:52]} Rxe2 {[%emt 0:01:35]} 19. Qxe2 {[%emt 0:01:24]} h6 {[%emt 0:03:38]} 20. Nb1 {[%emt 0:07:34]} Nd6 {[%emt 0:05:08]} 21. Nd2 {[%emt 0:04:15]} Bg6 {[%emt 0:01:51]} 22. c3 {[%emt 0:03:56]} Qd7 {[%emt 0:04:18]} 23. Bg3 {[%emt 0:02:25]} Re8 {[%emt 0:02:05]} 24. Qd1 {[%emt 0:02:49]} Re7 {[%emt 0:06:32]} 25. Rxe7 {[%emt 0:02:37]} Qxe7 {[%emt 0:00:18]} 26. Bxd6 {[%emt 0:00:14]} Qxd6 {[%emt 0:00:08]} 27. Qe2 {[%emt 0:00:27]} Qd7 {[%emt 0:01:33]} 28. Nf1 {[%emt 0:06:38]} a4 {[%emt 0:00:26]} 29. Bc2 {[%emt 0:00:25]} Bxc2 {[%emt 0:00:34]} 30. Qxc2 {[%emt 0:00:01]} Qe6 {[%emt 0:00:20]} 31. Kf2 {[%emt 0:01:52]} Bg5 {[%emt 0:00:42]} 32. g3 {[%emt 0:02:21]} Be7 {[%emt 0:01:30]} 33. Qe2 {[%emt 0:02:26]} Qd7 {[%emt 0:01:07]} 34. Ne3 {[%emt 0:05:53]} Bf8 {[%emt 0:01:11]} 35. Ng4 {[%emt 0:01:22]} f6 {[%emt 0:01:49]} 36. Ne3 {[%emt 0:00:37]} c5 {[%emt 0:01:48]} 37. Qd3 {[%emt 0:03:09]} Kf7 {[%emt 0:07:31]} 38. Qf5 {[%emt 0:00:27]} Qxf5 {[%emt 0:00:41]} 39. Nxf5 {[%emt 0:00:01]} c4 {[%emt 0:00:42]} 40. f4 {[%emt 0:02:36]} Ke6 {[%emt 0:06:59]} 41. Ne3 {[%emt 0:31:54]} g5 {[%emt 0:30:49]} 42. h4 {[%emt 0:01:20]} Bd6 {[%emt 0:01:14]} 43. Kf3 {[%emt 0:00:58]} Be7 {[%emt 0:02:28]} 44. Kg4 {[%emt 0:01:10]} Bd6 {[%emt 0:06:07]} 45. hxg5 {[%emt 0:03:57]} hxg5 {[%emt 0:01:14]} 46. fxg5 {[%emt 0:00:46]} fxg5 {[%emt 0:01:55]} 47. Nf5 {[%emt 0:01:31]} 1-0

[Event "FIDE Open Sachove Univerzity QCC"]
[Site "Ceske Budejovice"]
[Date "2020.07.07"]
[Round "7.24"]
[White "Havelkova, Beata"]
[Black "Strapec, Lukas"]
[Result "1/2-1/2"]
[ECO "C40"]
[WhiteElo "1394"]
[BlackElo "1487"]
[Annotator "NA"]
[PlyCount "94"]
[EventDate "2020.07.01"]
[EventType "swiss"]
[EventCountry "CZE"]
[SourceTitle "playchess.com"]
[Source "ChessBase"]
[SourceQuality "1"]
[TimeControl "40/5400+30:1800+30"]

1. e4 {[%emt 0:00:00]} e5 {[%emt 0:00:01]} 2. Nf3 {[%emt 0:00:00]} c6 {[%emt 0:00:27]} 3. Nxe5 {[%emt 0:03:06]} Nf6 {[%emt 0:02:03]} 4. d3 {[%emt 0:04:05]} Qa5+ {[%emt 0:00:58]} 5. Nc3 {[%emt 0:01:35]} Qxe5 {[%emt 0:00:47]} 6. f4 {[%emt 0:02:53]} Qe7 {[%emt 0:03:18]} 7. Be2 {[%emt 0:01:04]} d5 {[%emt 0:02:44]} 8. e5 {[%emt 0:02:25]} Nfd7 {[%emt 0:02:53]} 9. O-O {[%emt 0:02:15]} Nb6 {[%emt 0:06:32]} 10. d4 {[%emt 0:06:46]} g6 {[%emt 0:12:13]} 11. g4 {[%emt 0:04:52]} c5 {[%emt 0:09:37]} 12. a4 {[%emt 0:09:36]} cxd4 {[%emt 0:07:09]} 13. Nb5 {[%emt 0:02:02]} Qd8 {[%emt 0:09:47]} 14. Nxd4 {[%emt 0:10:10]} Bc5 {[%emt 0:03:28]} 15. c3 {[%emt 0:03:31]} Nc6 {[%emt 0:07:05]} 16. a5 {[%emt 0:03:55]} Nc4 {[%emt 0:06:07]} 17. b4 {[%emt 0:02:50]} Bxd4+ {[%emt 0:00:47]} 18. cxd4 {[%emt 0:00:37]} Nxb4 {[%emt 0:03:24]} 19. Qa4+ {[%emt 0:05:05]} Nc6 {[%emt 0:00:39]} 20. Bxc4 {[%emt 0:06:57]} dxc4 {[%emt 0:00:42]} 21. Rd1 {[%emt 0:01:30]} Qd5 {[%emt 0:01:37]} 22. h3 {[%emt 0:05:25]} O-O {[%emt 0:03:38]} 23. Ba3 {[%emt 0:01:52]} Re8 {[%emt 0:02:54]} 24. Bc5 {[%emt 0:02:05]} Bd7 {[%emt 0:02:13]} 25. Qc2 {[%emt 0:01:20]} Ne7 {[%emt 0:02:45]} 26. Rab1 {[%emt 0:02:20]} h5 {[%emt 0:02:05]} 27. Qe2 {[%emt 0:00:56]} hxg4 {[%emt 0:00:36]} 28. hxg4 {[%emt 0:00:13]} Bc6 {[%emt 0:01:11]} 29. Qh2 {[%emt 0:01:26]} Kg7 {[%emt 0:01:12]} 30. Bxe7 {[%emt 0:00:44]} Rxe7 {[%emt 0:00:28]} 31. Kf2 {[%emt 0:02:29]} Qf3+ {[%emt 0:00:27]} 32. Ke1 {[%emt 0:00:13]} Qe3+ {[%emt 0:00:24]} 33. Qe2 {[%emt 0:00:45]} Qxe2+ {[%emt 0:01:12]} 34. Kxe2 {[%emt 0:00:09]} Bd5 {[%emt 0:00:39]} 35. Rb5 {[%emt 0:00:54]} Rd7 {[%emt 0:00:57]} 36. f5 {[%emt 0:00:47]} gxf5 {[%emt 0:01:22]} 37. gxf5 {[%emt 0:00:11]} Kh7 {[%emt 0:01:35]} 38. Rg1 {[%emt 0:01:16]} Rg8 {[%emt 0:00:25]} 39. e6 {[%emt 0:01:01]} Rdd8 {[%emt 0:02:14]} 40. Rxg8 {[%emt 0:03:28]} Kxg8 {[%emt 0:00:29]} 41. Rxd5 {[%emt 0:30:42]} Re8 {[%emt 0:06:03]} 42. Re5 {[%emt 0:00:00]} fxe6 {[%emt 0:01:24]} 43. fxe6 {[%emt 0:00:00]} Kg7 {[%emt 0:00:33]} 44. d5 {[%emt 0:00:00]} Kf6 {[%emt 0:00:57]} 45. Re3 {[%emt 0:00:00]} b5 {[%emt 0:01:22]} 46. axb6 {[%emt 0:00:00]} axb6 {[%emt 0:00:42]} 47. Kd2 {[%emt 0:00:00]} Ke7 {[%emt 0:04:55]} 1/2-1/2

[Event "FIDE Open Sachove Univerzity QCC"]
[Site "Ceske Budejovice"]
[Date "2020.07.07"]
[Round "7.25"]
[White "Roubal, Matyas"]
[Black "Karweit, Alex W"]
[Result "1-0"]
[ECO "B53"]
[WhiteElo "1443"]
[BlackElo "1579"]
[Annotator "NA"]
[PlyCount "68"]
[EventDate "2020.07.01"]
[EventType "swiss"]
[EventCountry "CZE"]
[SourceTitle "playchess.com"]
[Source "ChessBase"]
[SourceQuality "1"]
[TimeControl "40/5400+30:1800+30"]

1. e4 {[%emt 0:00:00]} c5 {[%emt 0:00:00]} 2. Nf3 {[%emt 0:00:00]} d6 {[%emt 0:00:00]} 3. d4 {[%emt 0:00:00]} cxd4 {[%emt 0:00:12]} 4. Qxd4 {[%emt 0:00:00]} Nc6 {[%emt 0:00:36]} 5. Bb5 {[%emt 0:00:00]} Bd7 {[%emt 0:01:56]} 6. Bxc6 {[%emt 0:00:05]} Bxc6 {[%emt 0:02:44]} 7. Nc3 {[%emt 0:00:08]} Nf6 {[%emt 0:04:22]} 8. Bg5 {[%emt 0:00:13]} Qb6 {[%emt 0:05:20]} 9. Bxf6 {[%emt 0:01:55]} gxf6 {[%emt 0:00:57]} 10. Qxb6 {[%emt 0:00:13]} axb6 {[%emt 0:00:05]} 11. O-O-O {[%emt 0:00:33]} Rg8 {[%emt 0:04:40]} 12. g3 {[%emt 0:00:57]} f5 {[%emt 0:00:57]} 13. Rhe1 {[%emt 0:00:48]} Bg7 {[%emt 0:02:11]} 14. Nd4 {[%emt 0:02:00]} fxe4 {[%emt 0:04:35]} 15. Nxe4 {[%emt 0:01:37]} Bxe4 {[%emt 0:07:06]} 16. Rxe4 {[%emt 0:02:14]} d5 {[%emt 0:17:00]} 17. Re3 {[%emt 0:02:24]} Rxa2 {[%emt 0:02:29]} 18. Kb1 {[%emt 0:00:16]} Bxd4 {[%emt 0:02:00]} 19. Rxd4 {[%emt 0:01:26]} Ra5 {[%emt 0:01:16]} 20. Rb3 {[%emt 0:02:34]} Rg6 {[%emt 0:00:37]} 21. Rdb4 {[%emt 0:00:06]} Re6 {[%emt 0:00:43]} 22. Re3 {[%emt 0:00:37]} Rf6 {[%emt 0:03:50]} 23. f4 {[%emt 0:01:22]} Rc6 {[%emt 0:04:24]} 24. Re5 {[%emt 0:01:23]} Kd7 {[%emt 0:01:04]} 25. Rd4 {[%emt 0:02:26]} Rd6 {[%emt 0:31:13]} 26. Rf5 {[%emt 0:18:01]} Kc6 {[%emt 0:00:30]} 27. Rxf7 {[%emt 0:00:30]} Re6 {[%emt 0:00:30]} 28. Rd1 {[%emt 0:00:00]} Re2 {[%emt 0:00:00]} 29. Rxh7 {[%emt 0:00:00]} d4 {[%emt 0:00:00]} 30. b3 {[%emt 0:00:00]} Rc5 {[%emt 0:00:00]} 31. Rc1 {[%emt 0:00:00]} Kb5 {[%emt 0:00:00]} 32. Rh8 {[%emt 0:00:00]} Rc3 {[%emt 0:00:00]} 33. Rh5+ {[%emt 0:00:00]} Kb4 {[%emt 0:00:00]} 34. Kb2 {[%emt 0:00:00]} Rf2 {[%emt 0:00:00]} 1-0

[Event "FIDE Open Sachove Univerzity QCC"]
[Site "Ceske Budejovice"]
[Date "2020.07.07"]
[Round "7.26"]
[White "Huemer, Gerald"]
[Black "Bastyr, Pavel"]
[Result "1-0"]
[ECO "D02"]
[WhiteElo "1721"]
[BlackElo "1439"]
[Annotator "NA"]
[PlyCount "101"]
[EventDate "2020.07.01"]
[EventType "swiss"]
[EventCountry "CZE"]
[SourceTitle "playchess.com"]
[Source "ChessBase"]
[SourceQuality "1"]
[TimeControl "40/5400+30:1800+30"]

1. d4 {[%emt 0:00:00]} Nf6 {[%emt 0:00:00]} 2. Bf4 {[%emt 0:00:00]} d5 {[%emt 0:00:28]} 3. e3 {[%emt 0:00:00]} e6 {[%emt 0:00:20]} 4. Nf3 {[%emt 0:00:01]} c5 {[%emt 0:01:10]} 5. c3 {[%emt 0:00:03]} Bd7 {[%emt 0:02:49]} 6. Nbd2 {[%emt 0:00:05]} Be7 {[%emt 0:00:53]} 7. Bd3 {[%emt 0:00:26]} O-O {[%emt 0:00:14]} 8. Ne5 {[%emt 0:00:38]} c4 {[%emt 0:01:50]} 9. Bc2 {[%emt 0:00:08]} b5 {[%emt 0:00:08]} 10. a3 {[%emt 0:00:12]} a6 {[%emt 0:00:06]} 11. Ndf3 {[%emt 0:00:49]} Nc6 {[%emt 0:01:16]} 12. h4 {[%emt 0:00:14]} Nh5 {[%emt 0:02:17]} 13. Nxc6 {[%emt 0:01:24]} Bxc6 {[%emt 0:00:14]} 14. Ne5 {[%emt 0:00:16]} Nxf4 {[%emt 0:00:17]} 15. Nxc6 {[%emt 0:00:11]} Nxg2+ {[%emt 0:00:11]} 16. Kf1 {[%emt 0:00:59]} Nxe3+ {[%emt 0:00:05]} 17. fxe3 {[%emt 0:00:12]} Qc7 {[%emt 0:03:03]} 18. Nxe7+ {[%emt 0:00:40]} Qxe7 {[%emt 0:00:07]} 19. Qh5 {[%emt 0:00:58]} g6 {[%emt 0:01:54]} 20. Qg5 {[%emt 0:00:09]} f6 {[%emt 0:00:07]} 21. Qg3 {[%emt 0:00:46]} e5 {[%emt 0:01:27]} 22. dxe5 {[%emt 0:00:28]} fxe5+ {[%emt 0:00:11]} 23. Ke2 {[%emt 0:00:12]} e4 {[%emt 0:01:58]} 24. Raf1 {[%emt 0:00:45]} Kg7 {[%emt 0:05:59]} 25. Rxf8 {[%emt 0:00:34]} Rxf8 {[%emt 0:00:08]} 26. Rf1 {[%emt 0:00:03]} Rxf1 {[%emt 0:05:05]} 27. Kxf1 {[%emt 0:00:30]} Qf6+ {[%emt 0:00:30]} 28. Qf2 {[%emt 0:00:07]} Qe6 {[%emt 0:04:09]} 29. Bd1 {[%emt 0:01:30]} a5 {[%emt 0:06:17]} 30. Kg2 {[%emt 0:01:53]} Qe7 {[%emt 0:01:56]} 31. Qf4 {[%emt 0:04:26]} b4 {[%emt 0:06:03]} 32. axb4 {[%emt 0:00:52]} axb4 {[%emt 0:00:17]} 33. Ba4 {[%emt 0:03:57]} bxc3 {[%emt 0:02:30]} 34. bxc3 {[%emt 0:00:02]} Qa3 {[%emt 0:17:35]} 35. Qe5+ {[%emt 0:00:24]} Kh6 {[%emt 0:00:09]} 36. Bc6 {[%emt 0:02:51]} Qb2+ {[%emt 0:05:25]} 37. Kg3 {[%emt 0:01:40]} Qe2 {[%emt 0:00:13]} 38. Qf4+ {[%emt 0:00:32]} Kg7 {[%emt 0:01:18]} 39. Bxd5 {[%emt 0:02:21]} Qe1+ {[%emt 0:00:15]} 40. Qf2 {[%emt 0:00:02]} Qxc3 {[%emt 0:00:28]} 41. Qf7+ {[%emt 0:31:45]} Kh6 {[%emt 0:30:21]} 42. Kf4 {[%emt 0:00:18]} Qg7 {[%emt 0:05:07]} 43. Qxg7+ {[%emt 0:00:40]} Kxg7 {[%emt 0:00:07]} 44. Bxc4 {[%emt 0:00:02]} Kf6 {[%emt 0:00:51]} 45. Bd5 {[%emt 0:00:26]} h6 {[%emt 0:00:25]} 46. Bxe4 {[%emt 0:00:14]} g5+ {[%emt 0:00:09]} 47. hxg5+ {[%emt 0:00:06]} hxg5+ {[%emt 0:00:14]} 48. Kg4 {[%emt 0:00:08]} Ke5 {[%emt 0:00:20]} 49. Bf5 {[%emt 0:00:08]} Kf6 {[%emt 0:00:12]} 50. e4 {[%emt 0:00:08]} Ke5 {[%emt 0:00:33]} 51. Kxg5 {[%emt 0:00:08]} 1-0

[Event "FIDE Open Sachove Univerzity QCC"]
[Site "Ceske Budejovice"]
[Date "2020.07.07"]
[Round "7.27"]
[White "Smola, David"]
[Black "Klimes, Roman"]
[Result "1-0"]
[ECO "C50"]
[WhiteElo "1649"]
[BlackElo "1349"]
[Annotator "NA"]
[PlyCount "61"]
[EventDate "2020.07.01"]
[EventType "swiss"]
[EventCountry "CZE"]
[SourceTitle "playchess.com"]
[Source "ChessBase"]
[SourceQuality "1"]
[TimeControl "40/5400+30:1800+30"]

1. e4 {[%emt 0:00:00]} e5 {[%emt 0:00:00]} 2. Nf3 {[%emt 0:00:27]} Nc6 {[%emt 0:00:32]} 3. Bc4 {[%emt 0:01:34]} Nf6 {[%emt 0:01:17]} 4. d3 {[%emt 0:01:44]} Bc5 {[%emt 0:03:06]} 5. Bg5 {[%emt 0:01:46]} h6 {[%emt 0:04:55]} 6. Bh4 {[%emt 0:03:06]} g5 {[%emt 0:04:08]} 7. Bg3 {[%emt 0:03:11]} d6 {[%emt 0:00:02]} 8. h3 {[%emt 0:03:13]} Qe7 {[%emt 0:02:55]} 9. Nbd2 {[%emt 0:07:15]} Be6 {[%emt 0:00:31]} 10. Bb5 {[%emt 0:03:07]} Bd7 {[%emt 0:03:24]} 11. Qe2 {[%emt 0:06:34]} O-O-O {[%emt 0:04:18]} 12. O-O-O {[%emt 0:03:16]} Nb4 {[%emt 0:07:57]} 13. Bxd7+ {[%emt 0:04:04]} Qxd7 {[%emt 0:04:20]} 14. a3 {[%emt 0:01:53]} Nc6 {[%emt 0:23:54]} 15. Nb3 {[%emt 0:04:39]} Nd4 {[%emt 0:05:13]} 16. Nfxd4 {[%emt 0:04:46]} Bxd4 {[%emt 0:01:43]} 17. Nxd4 {[%emt 0:02:02]} exd4 {[%emt 0:00:01]} 18. f4 {[%emt 0:01:34]} gxf4 {[%emt 0:05:17]} 19. Bh4 {[%emt 0:01:57]} Qe6 {[%emt 0:04:57]} 20. Qf2 {[%emt 0:03:08]} Rdg8 {[%emt 0:04:05]} 21. Qxd4 {[%emt 0:02:41]} Nd7 {[%emt 0:01:47]} 22. Rdf1 {[%emt 0:04:05]} Rh7 {[%emt 0:06:18]} 23. Rhg1 {[%emt 0:05:26]} Rhg7 {[%emt 0:00:53]} 24. Rxf4 {[%emt 0:01:13]} Qe5 {[%emt 0:04:44]} 25. Qxe5 {[%emt 0:02:47]} dxe5 {[%emt 0:01:10]} 26. Rf2 {[%emt 0:00:35]} Nc5 {[%emt 0:01:29]} 27. Bf6 {[%emt 0:00:52]} Rg3 {[%emt 0:02:01]} 28. Bxe5 {[%emt 0:01:42]} Rxd3 {[%emt 0:00:22]} 29. Rxf7 {[%emt 0:01:44]} Re8 {[%emt 0:00:59]} 30. Rxc7+ {[%emt 0:00:37]} Kd8 {[%emt 0:00:16]} 31. Rxc5 {[%emt 0:00:09]} 1-0

[Event "FIDE Open Sachove Univerzity QCC"]
[Site "Ceske Budejovice"]
[Date "2020.07.07"]
[Round "7.28"]
[White "Vavrousek, Petr"]
[Black "Vojtek, Pavel"]
[Result "1/2-1/2"]
[ECO "C87"]
[WhiteElo "1598"]
[BlackElo "1295"]
[Annotator "NA"]
[PlyCount "58"]
[EventDate "2020.07.01"]
[EventType "swiss"]
[EventCountry "CZE"]
[SourceTitle "playchess.com"]
[Source "ChessBase"]
[SourceQuality "1"]
[TimeControl "40/5400+30:1800+30"]

1. e4 {[%emt 0:00:00]} e5 {[%emt 0:00:00]} 2. Nf3 {[%emt 0:00:00]} Nc6 {[%emt 0:00:00]} 3. Bb5 {[%emt 0:00:01]} d6 {[%emt 0:00:00]} 4. O-O {[%emt 0:02:27]} Bd7 {[%emt 0:00:29]} 5. c3 {[%emt 0:00:30]} a6 {[%emt 0:02:37]} 6. Ba4 {[%emt 0:00:17]} Nf6 {[%emt 0:03:05]} 7. Re1 {[%emt 0:01:00]} Be7 {[%emt 0:00:53]} 8. d4 {[%emt 0:01:00]} exd4 {[%emt 0:02:24]} 9. cxd4 {[%emt 0:01:04]} O-O {[%emt 0:06:34]} 10. h3 {[%emt 0:08:34]} d5 {[%emt 0:12:43]} 11. e5 {[%emt 0:01:06]} Ne8 {[%emt 0:02:55]} 12. Nc3 {[%emt 0:01:21]} b5 {[%emt 0:05:00]} 13. Bc2 {[%emt 0:03:33]} Bc8 {[%emt 0:04:02]} 14. Be3 {[%emt 0:01:17]} f6 {[%emt 0:06:48]} 15. Nxd5 {[%emt 0:01:44]} Na5 {[%emt 0:08:16]} 16. Nxe7+ {[%emt 0:00:34]} Qxe7 {[%emt 0:00:06]} 17. exf6 {[%emt 0:00:53]} Qxf6 {[%emt 0:01:37]} 18. Bg5 {[%emt 0:08:02]} Qf7 {[%emt 0:03:31]} 19. b4 {[%emt 0:01:42]} Nc4 {[%emt 0:01:45]} 20. Be7 {[%emt 0:01:10]} Ned6 {[%emt 0:06:55]} 21. Bxf8 {[%emt 0:07:29]} Qxf8 {[%emt 0:00:30]} 22. Ne5 {[%emt 0:00:30]} Bb7 {[%emt 0:02:02]} 23. Bb3 {[%emt 0:00:35]} Ne4 {[%emt 0:02:46]} 24. Qc2 {[%emt 0:03:04]} Kh8 {[%emt 0:05:40]} 25. Bxc4 {[%emt 0:01:09]} bxc4 {[%emt 0:01:58]} 26. Qxc4 {[%emt 0:00:30]} Qxf2+ {[%emt 0:00:28]} 27. Kh2 {[%emt 0:03:28]} Qg3+ {[%emt 0:01:31]} 28. Kg1 {[%emt 0:00:23]} Qf2+ {[%emt 0:02:04]} 29. Kh2 {[%emt 0:00:15]} Qg3+ {[%emt 0:01:18]} 1/2-1/2

[Event "FIDE Open Sachove Univerzity QCC"]
[Site "Ceske Budejovice"]
[Date "2020.07.07"]
[Round "7.29"]
[White "Policar, Martin"]
[Black "Martirosyan, David"]
[Result "1/2-1/2"]
[ECO "B21"]
[WhiteElo "1258"]
[BlackElo "1555"]
[Annotator "NA"]
[PlyCount "86"]
[EventDate "2020.07.01"]
[EventType "swiss"]
[EventCountry "CZE"]
[SourceTitle "playchess.com"]
[Source "ChessBase"]
[SourceQuality "1"]
[TimeControl "40/5400+30:1800+30"]

1. e4 {[%emt 0:00:00]} c5 {[%emt 0:00:00]} 2. d4 {[%emt 0:00:00]} cxd4 {[%emt 0:00:13]} 3. c3 {[%emt 0:00:23]} dxc3 {[%emt 0:00:50]} 4. Nxc3 {[%emt 0:00:23]} Nc6 {[%emt 0:00:32]} 5. Nf3 {[%emt 0:00:49]} d6 {[%emt 0:01:01]} 6. Bf4 {[%emt 0:00:49]} a6 {[%emt 0:03:04]} 7. e5 {[%emt 0:01:26]} dxe5 {[%emt 0:05:24]} 8. Qxd8+ {[%emt 0:00:49]} Nxd8 {[%emt 0:00:52]} 9. Nxe5 {[%emt 0:02:52]} e6 {[%emt 0:02:20]} 10. O-O-O {[%emt 0:03:15]} Nf6 {[%emt 0:03:39]} 11. Rxd8+ {[%emt 0:05:10]} Kxd8 {[%emt 0:03:54]} 12. Nxf7+ {[%emt 0:00:39]} Ke7 {[%emt 0:01:28]} 13. Nxh8 {[%emt 0:02:42]} Bd7 {[%emt 0:16:41]} 14. Bg5 {[%emt 0:04:31]} g6 {[%emt 0:06:18]} 15. Ne4 {[%emt 0:05:03]} Bg7 {[%emt 0:02:09]} 16. Nxg6+ {[%emt 0:00:34]} hxg6 {[%emt 0:00:11]} 17. Be2 {[%emt 0:01:36]} Bc6 {[%emt 0:07:46]} 18. Nxf6 {[%emt 0:02:14]} Bxf6 {[%emt 0:02:59]} 19. Bxf6+ {[%emt 0:00:44]} Kxf6 {[%emt 0:00:12]} 20. f3 {[%emt 0:01:28]} Rc8 {[%emt 0:02:26]} 21. Kd2 {[%emt 0:01:18]} Bd5 {[%emt 0:01:19]} 22. a3 {[%emt 0:00:43]} Rc6 {[%emt 0:08:49]} 23. Rc1 {[%emt 0:00:45]} Rb6 {[%emt 0:01:35]} 24. b4 {[%emt 0:01:05]} Rd6 {[%emt 0:01:18]} 25. Ke3 {[%emt 0:00:39]} Bc6 {[%emt 0:00:55]} 26. Rd1 {[%emt 0:01:38]} Bd5 {[%emt 0:01:22]} 27. g4 {[%emt 0:02:37]} Rc6 {[%emt 0:02:47]} 28. Kd4 {[%emt 0:00:42]} Rc2 {[%emt 0:02:35]} 29. Ke3 {[%emt 0:01:26]} Ra2 {[%emt 0:00:57]} 30. Rd3 {[%emt 0:00:12]} Bc4 {[%emt 0:01:34]} 31. Rd2 {[%emt 0:00:53]} Rxa3+ {[%emt 0:01:15]} 32. Kf4 {[%emt 0:00:43]} g5+ {[%emt 0:11:49]} 33. Kg3 {[%emt 0:00:41]} Bd5 {[%emt 0:01:01]} 34. Rd3 {[%emt 0:03:51]} Ra2 {[%emt 0:01:26]} 35. Re3 {[%emt 0:01:20]} Rb2 {[%emt 0:00:50]} 36. h4 {[%emt 0:06:10]} gxh4+ {[%emt 0:04:04]} 37. Kxh4 {[%emt 0:00:17]} Rxb4 {[%emt 0:00:07]} 38. Kh5 {[%emt 0:00:32]} Rb1 {[%emt 0:00:23]} 39. g5+ {[%emt 0:00:40]} Kf5 {[%emt 0:00:42]} 40. Bd3+ {[%emt 0:00:24]} Kf4 {[%emt 0:00:27]} 41. Bxb1 {[%emt 0:30:30]} Kxe3 {[%emt 0:30:24]} 42. g6 {[%emt 0:00:22]} e5 {[%emt 0:00:53]} 43. Be4 {[%emt 0:00:19]} Bg8 {[%emt 0:00:00]} 1/2-1/2